{"text_format":"2","workbook":"xlsx","n_sheets":4,"sheets":["RESUMO","PRELIMINARES E GERAIS","MODULOS PRE FABRICADOS","GUARITA"],"not_rendered":{"charts":0,"images":2,"macros":0,"external_links":0,"defined_names":0,"comments":0,"pivot_tables":0},"unopened":[],"bounds":{"document_bytes":16777216,"sheet_cells":100000,"run_cost":"one","rows_first":2000,"rows_last":500,"rows_between":2000,"halvings":0,"cell_chars":16384,"cell_head_chars":4096},"cells_cut":0,"cells_raw":0,"read":"whole","date_system":"1900"}

{"sheet":"RESUMO","index":0,"n_rows":30,"n_cols":6,"rows_kept":30,"cut":false,"hidden":false,"merged":[[1,0,1,1],[1,2,1,5],[2,0,2,3],[2,4,2,5],[3,4,3,5],[29,1,30,5],[6,4,6,5],[3,0,3,1],[5,0,5,1],[9,1,9,5],[4,4,4,5],[5,4,5,5],[6,0,6,3],[4,0,4,1]]}
[]
["MINISTERIO DA SAUDE ",null,"UNITED NATIONS DEVELOPMENT PROGRAMME"]
["TÍTULO:"]
["LABORATORIO DE SAUDE PUBLICA",null,null,null,"MAPA DE QUANTIDADES"]
["LOTE 1",null,null,null,"(ESTIMATIVAS DE CUSTO)"]
["MANICA",null,null,null,"RESUMO"]
[]
[]
["ITEM","DESCRIÇÃO","UN","QUANT.",null,"PREÇO TOTAL"]
[null,"RESUMO"]
[1,"PRELIMINARES E GERAIS",null,null,null,{"$f":"+'PRELIMINARES E GERAIS'!F68","v":0}]
[2,"MODULOS PREFABRICADOS",null,null,null,{"$f":"+'MODULOS PRE FABRICADOS'!F67","v":0}]
[2,"Sanitarios",null,null,{"$f":"'MODULOS PRE FABRICADOS'!F65","v":0}]
[2,"EDIFICIOS CONVENCIONAIS",null,null,null,{"$f":"+#REF!","v":{"$error":"#REF!"}}]
[2,"Cozinha e manutencao",null,1,{"$f":"+#REF!","v":{"$error":"#REF!"}}]
[2,"Lavandaria",null,1,{"$f":"+#REF!","v":{"$error":"#REF!"}}]
[2,"Tratamento de Lixo",null,null,{"$f":"+#REF!","v":{"$error":"#REF!"}}]
[2,"ARRANJOS EXTERIORES",null,null,null,{"$f":"#REF!","v":{"$error":"#REF!"}}]
[2,"Vedacao",null,1,{"$f":"+#REF!","v":{"$error":"#REF!"}}]
[2,"Pavimentacao",null,1,{"$f":"+#REF!","v":{"$error":"#REF!"}}]
[2,"Jardinagem",null,1,{"$f":"+#REF!","v":{"$error":"#REF!"}}]
[3,"GUARITA",null,null,null,{"$f":"GUARITA!F86","v":0}]
[]
[null,"Total",null,null,null,{"$f":"F12+F11+F22","v":0}]
[null,"Iva 17%",null,null,null,{"$f":"F24*0.17","v":0}]
[null,"Total incl. iva",null,null,null,{"$f":"+F25+F24","v":0}]
[null,"Contigencias10%)",null,null,null,{"$f":"F26*0.1","v":0}]
[null,"Grande total",null,null,null,{"$f":"+F27+F26","v":0}]
[]
[null,"NOTA:"]

{"sheet":"PRELIMINARES E GERAIS","index":1,"n_rows":68,"n_cols":6,"rows_kept":68,"cut":false,"hidden":false,"merged":[[57,1,57,5],[49,1,49,5],[34,1,34,5],[26,1,26,5],[42,1,42,5],[1,0,1,1],[1,2,1,5],[2,0,2,3],[2,4,2,5],[3,4,3,5],[3,0,3,1],[3,2,3,3],[6,0,6,3],[6,4,6,5],[9,1,9,5],[19,1,19,5],[4,4,4,5],[5,4,5,5],[5,0,5,1],[5,2,5,3]]}
[]
["MINISTERIO DA SAUDE ",null,"UNITED NATIONS DEVELOPMENT PROGRAMME"]
["TÍTULO:"]
["LABORATORIO DE SAUDE PUBLICA",null,null,null,"MAPA DE QUANTIDADES"]
[null,"LOTE 1"]
["MANICA",null,null,null,"PRELIMINARES E GERAIS"]
[]
[]
["ITEM","DESCRIÇÃO","UN","QUANT.","PREÇO UNITÁRIO","PREÇO TOTAL"]
[1,"PRELIMINARES E GERAIS"]
[1.1000000000000001,"Preparacao de projecto executivo das especialidades, incluindo desenhos, calculos, especificacoes tecnicas e fornecimento de catalogos, de acordo com as normas e recomendacoes da OMS para a execucao de unidades sanitarias para doencas respiratorias graves (SARI) ","vg",1,null,{"$f":"+E11*D11","v":0}]
[1.2,"Limpeza geral  do terreno reservado a construção,  incluindo remoção do lixo para um local a definir pela fiscalização","m2",2400,null,0]
[1.3,"Montagem e desmontagem de estaleiro central, com vedacao provisoria, escritorio para a fiscalizacao e instalacoes sanitarias, incluindo mobilização e desmobilização de todos equipamentos de estaleiro e pessoal necessários;  bem como colocação da placa da obra de acordo com o modelo do Dono da Obra e instruções da fiscalização","vg",1,null,0]
[1.4,"Execucao de testes e ensaios de materiais de construcao, incluindo estudo de composicao de betao e certificados de aco ede blocos","Vg",1,null,{"$f":"+E14*D14","v":0}]
[1.4,"Fornecimento das telas finais de todas as especialidades ","Vg",1,null,0]
[1.5,"Fornecimento e execução de base para placa de inauguração incluindo placa de mármore e dizeres a definir pelo Dono de Obra","un",1,null,0]
[1.4,"Limpeza e desinfeccao da obra apos conclusao da mesma.","Vg",1,null,0]
[null,"Subtotal",null,null,null,{"$f":"SUM(F11:F17)","v":0}]
[]
[2,"IMPLANTACAO E MOVIMENTOS DE TERRAS"]
[2.1,"Regularização area a implantar as infraestruturas  consoante os desniveis do terreno caso hajam, incluindo aterro com solo de empréstimo,  rega e compactação a 95% MOD AASHTO e todos trabalhos complementares para boa execução da actividade de acordo com a implantação geral do projecto e instrução do fiscal. (Item condicionado as condicoes do relevo a ser observado apos visita dos concorrentes)","m2",340,null,{"$f":"+E21*D21","v":0}]
[2.2000000000000002,"Tratamento do solo contra  térmites (muchém), xilófagos dentre muitas outras pragas de insectos que assolam a região, com produto bastante forte em toda a área de edificação, incluindo respectivos arruamentos.","m2",340,null,{"$f":"+E22*D22","v":0}]
[2.2999999999999998,"Implantacao da obra incluindo trabalhos  de Marcação e colocação de cangalhos dos edifícios","Vg",1,null,{"$f":"+E23*D23","v":0}]
[]
[null,"Subtotal",null,null,null,{"$f":"SUM(F21:F24)","v":0}]
[]
[3,"REDE DE ABASTECIMENTO DE AGUA"]
[3.1,"Fornecimento e montagem de tubagem exterior enterrada em polietileno de alta densidade para ligacao e distribuição de água aos edificios definidos no projecto, incluindo acessórios, fixações, bem como todos os trabalhos necessários.","Vg",1,null,{"$f":"+E28*D28","v":0}]
[3.2,"Fornecimento e montagem de torneira de rega de jardim, incluindo tubagem de ligacao e todos acessorios ao seu bom funcionamento","Un",2,null,{"$f":"+E29*D29","v":0}]
[3.3,"Fornecimento e montagem de deposito de agua em polietileno com capacidade de 5.000L enterrado, indluindo execucao decaixa em alvenaria, ligacao ao sistema existente com tubagem de polietileno de alta densidade, aplicacao de valvulas de retencao e seccionamento e todos os trabalhos complementares ao bom funcionamento","Un",1,null,{"$f":"+E30*D30","v":0}]
[3.4,"Fornecimento e montagem de deposito de agua com capacidade de 1.000L do tipo plastex , incluindo execucao de base de assentamento em betao, ligacao ao sistema existente com tubagem de polietileno de alta densidade, aplicacao de valvulas de retencao e seccionamento e todos os trabalhos complementares ao bom funcionamento","Un",1,null,{"$f":"+E31*D31","v":0}]
[3.5,"Fornecimento e montagem de bomba de agua com hidropressor e todas as ligacoes necessarias,aplicacao de valvulas de retencao e seccionamento e todos os trabalhos complementares ao bom funcionamento","un",1,null,{"$f":"+E32*D32","v":0}]
[null,"Subtotal",null,null,null,{"$f":"SUM(F28:F32)","v":0}]
[]
[4,"REDE DE ESGOTOS"]
[4.0999999999999996,"Fornecimento e montagem de tubagem plastica enterrada  para coleta de aguasdos laboratorios e canalizacao a Fossa quimica, incluindo acessórios de ligacao, bem como todos os trabalhos necessários.","Vg",1,null,{"$f":"+E36*D36","v":0}]
[4.2,"Fornecimento e montagem de tubagem plastica  enterrada  para ligacao dos esgotos do edificio a Fossa septic e Dreno, incluindo execucao de caixas de inspeccao, acessórios de ligacao, bem como todos os trabalhos necessários.","Vg",1,null,0]
[4.4000000000000004,"Construção de fossa septica,em alvenaria e tampa em betao armado, dimensionada para 20 pessoas incluíndo todos os trabalhos  necessarioa a sua execucao e funcionamento ","un",1,null,0]
[4.4000000000000004,"Fornecimento e montagem de fossa Quimica em polietereno de alta densidade de 3000L,  incluíndo todos os trabalhos  necessarioa a sua execucao e funcionamento ","un",2,null,0]
[4.4000000000000004,"Construção de dreno de infiltração com 1,5 m de diâmetro e 2,0 m de altura útil,em alvenaria e tampa em betao armado,  incluíndo todos os trabalhos  necessarioa a sua execucao e funcionamento ","un",1,null,0]
[null,"Subtotal",null,null,null,{"$f":"SUM(F36:F40)","v":0}]
[]
[5,"REDE DE ELECTRICIDADE"]
[5.0999999999999996,"Execucao de rede electrica de ligacao ao quadro electrico geral e deste aos quadros parciais dos edificios e gerador, incluindo caixas de passagem todos os trabalhos necessarios","Vg",1,null,{"$f":"+E44*D44","v":0}]
[5.2,"Fornecimento e montagem de Quadro electrico geral, incluindo , os respectivos fusiveis, ligacao a terra de proteccao e todos os trabalhos necessarios.","Un",1,null,{"$f":"+E45*D45","v":0}]
[5.3,"Execucao de  Alpendre de gerador com 9m2 com piso em betão e cobertura em estrutura metálica, chapas IBR 0.6mm e fechamento lateral com malha de rede expandda, incluindo portao de acesso a manutencao..","un",1,null,{"$f":"+E46*D46","v":0}]
[5.3,"Execucao de rede de Informática nos seguintes compartimentos: Escritório, Sala Receção Amostras e Sala de Amplificação; total 6 pontos de conexão. Inclui bastidor, patch panel calhas para passagem de cabos, certificação e todos os acessórios necessários ao seu perfeito funcionamento.","VG",1,null,{"$f":"+E47*D47","v":0}]
[null,"Subtotal",null,null,null,{"$f":"SUM(F44:F47)","v":0}]
[]
[6,"SINALIZACAO DE EMERGENCIA COMBATE A INCENDIOS"]
[6.1,"Sinalizacao luminosa de saida de emergencia","UN",6,null,{"$f":"+E51*D51","v":0}]
[6.2,"caixa metalica com Kit de primeiros socorros","un",1,null,{"$f":"+E52*D52","v":0}]
[6.3,"Fornecimento e montagem de extintores abc, PO 9kg,  incluindo a respectiva sinalizacao e instrucao de uso","un",3,null,{"$f":"+E53*D53","v":0}]
[6.4,"Fornecimento e montagem de extintores abc, CO2 5kg,  incluindo a respectiva sinalizacao e instrucao de uso","un",3,null,0]
[6.5,"Fornecimento e montagem de sistema de detetores de fumo, incluindo painel de 4 zonas, e sirene e iluminacao de alerta. De acordo com as especificacoes tecnicas","VG",1,null,0]
[null,"Subtotal",null,null,null,{"$f":"SUM(F51:F55)","v":0}]
[]
[7,"ARRANJOS EXTERIORES"]
[7.1,"Execucao de pavimento de circulacao pedonal embetonilha queimada e esquartelada, incluindo aterros, enrrocamento e compactacao, e todos os trabalhos necessarios a uma boa execucao.","m2",{"$f":"340-150","v":190},null,{"$f":"+E59*D59","v":0}]
[7.2,"Execucao em pavimento de circulacao de viaturas em blocos de pave tipo Zig-zag da classe 45, com 80mm de espessura, incluindodelimitacao em lancil de betao, aterros, compactacao e estabilizacao com solo cimento,aplicacao de lancis em betao e todos os trabalhos complementares.","m2",380,null,0]
[7.3,"reabilitacao do muro de vedacao existente, incluindo pintura e todos os trabalhos complementares e de acabamento necessarios","ml",220,null,0]
[7.4,"Fornecimento e montagem de portao de  correr do tipo Clear Vu, para o acesso de viaturas, com 3.50x1.80 m, com Ref. Invisible wall\" incluindo equipamento de comando electrónico compatível.","un",1,null,0]
[7.5,"Fornecimento e montagem de portao de pedestres do tipo Clear Vu, para o acesso de pedestres, com 1.20x1.80 m, com Ref. Invisible wall\" incluindo equipamento de comando electrónico compatível.","un",1,null,0]
[7.6,"Fornecimento e montagem de postes de iluminacao de 3m de altura, com luminarias do tipo LED, incluindo todos os trabalhos e acessorios de ligacao.","un",7,null,0]
[7.7,"Execucao de floreiras hornamentais,  incluindo fornecimento e aplicacao de terra vegetal, relva e plantas de pequeno porte.","m2",600,null,0]
[null,"Subtotal",null,null,null,{"$f":"SUM(F59:F65)","v":0}]
[]
[null,"SUBTOTAL -PRELIMINARES E GERAIS",null,null,null,{"$f":"+F25+F18+F48+F41+F33+F66+F56","v":0}]

{"sheet":"MODULOS PRE FABRICADOS","index":2,"n_rows":67,"n_cols":7,"rows_kept":67,"cut":false,"hidden":false,"merged":[[1,0,1,1],[1,2,1,5],[2,0,2,3],[2,4,2,5],[3,0,3,3],[3,4,3,5],[56,1,56,5],[4,0,4,3],[4,4,4,5],[5,4,5,5],[6,0,6,3],[6,4,6,5],[9,1,9,5],[18,1,18,5],[26,1,26,5],[36,1,36,5],[46,1,46,5]]}
[]
["MINISTERIO DA SAUDE ",null,"UNITED NATIONS DEVELOPMENT PROGRAMME"]
["TÍTULO:"]
["LABORATORIO DE SAUDE PUBLICA",null,null,null,"MAPA DE QUANTIDADES"]
["LOTE 1"]
[null,"MANICA",null,null,"MODULOS PRE FABRICADOS"]
[]
[]
["ITEM","DESCRIÇÃO","UN","QUANT.","PREÇO UNITÁRIO","PREÇO TOTAL"]
[1,"EDIFICIO DE LABORATORIO"]
[1,"Edificio de LABORATORIO com 18.20x8.44m em de modulo pre fabricado, com sobrecarga admissivel de 400kg/m2, com compartimentacao de acordo com o projecto e especificacoes tecnicas constantes na memorias descritivas dos Termos de referencia, (em anexo)"]
[1.1000000000000001,"Execucao de Base de assentamento em laje de betao armado, elevado a 60cm do solo, com rampa de acesso e escadaria, de acordo com o projecto, incluindo,  movimentos de terra, fundacoes, acabamento em esmalte poliuretano e todos os trabalhos complementares.","m2",154,null,{"$f":"+E12*D12","v":0}]
[{"$nulls":5},{"$f":"+E13*D13","v":0}]
[1.2,"Fornecimento e montagem de modulo prefabricado  com cerca de 154 m2 de acordo com as dimencoes e especificacoes do projecto. Incluindo pavimento Viroc, caixilharia,  instalacoes tecnicas (Abastecimento de Agua, esgotos, electricidade e HAVAC),  equipamentos sanitarios e arcondicionados,  transporte e montagem e  todos os trabalhos complementares e  de acabamento para o seu bom funcionamento.","un",1,null,0]
[]
[1.3,"Execucao de cobertura em chapa IBR de 6mm assente sobre uma estrutura asnas e madres de perfis metalicos galvanizados espassadas a 60cm.","m2",154,null,0]
[null,"Subtotal",null,null,null,{"$f":"SUM(F11:F16)","v":0},{"$f":"+F17/D16","v":0}]
[]
[2,"BANCADAS FENOLICAS"]
[2.1,"fornecimento e montagem de bancadas fenolicas em resina de 22mm com as seguintes caracteristicas e  dimensoes"]
[null,"1.20x0.70x0.90m (Reagent prep / Sample room)","un",2,null,{"$f":"+E21*D21","v":0}]
[null,"2.000x0.70x0.90m (Extraction / Amplification room))","un",2,null,0]
[null,"1.60x0.70x0.90m com cuba de mesmo material incluindo torneira de laboratorio e todos acessorios de ligacao(Extraction room)","un",1,null,0]
[null,"2.20x0.70x0.90m com cuba de mesmo material incluindo torneira de laboratorio e todos acessorios de ligacao (Sterilization room)","un",1,null,0]
[null,"Subtotal",null,null,null,{"$f":"SUM(F21:F24)","v":0}]
[]
[3,"MATERINDADE"]
[3,"Edificio de Maternidade executado em de modulo pre fabricado, com compartimentacao de acordo com o projecto e especificacoes tecnicas constantes na memorias descritivas dos Termos de referencia."]
[3.1,"Execucao de Base de assentamento em laje de betao armado, elevado a 60cm do solo, com rampa de acesso e escadaria, de acordo com o projecto, incluindo,  movimentos de terra, fundacoes e todos os trabalhos complementares.","m2",115,120,{"$f":"+E29*D29","v":13800}]
[{"$nulls":5},{"$f":"+E30*D30","v":0}]
[3.2,"Fornecimento e montagem de modulo prefabricado  com cerca de 115 m2 de acordo com as dimencoes e especificacoes do projecto. Incluindo transporte, caixilharia,  instalacoes tecnicas e  todos os trabalhos complementares e  de acabamento para o seu bom funcionamento.","un",1,100000,100000]
[{"$nulls":5},0]
[3.3,"Execucao de cobertura em chapa IBR assente sobre uma estrutura asnas e madres de perfis metalicos.","m2",115,50,5750]
[]
[null,"Subtotal"]
[]
[4,"EQUIPAMENTOS"]
[4,"Fornecimento e montagem de ar condicionados do tipo split,incluindo circuito com proteccao e os respectivos apoios, com as seguintes capacidades"]
[4.0999999999999996,"AC 9.000 BTU","un",5,null,{"$f":"+E39*D39","v":0}]
[null,"AC 12.000 BTU","un",3,null,{"$f":"+E40*D40","v":0}]
[]
[null,"Fornecimento e montagem de Termo acumulador electrico, incluindo, tubagem de ligacao, circuito com proteccao e todos os trabalhos necessarios com as seguintes capacidades"]
[4.3,"TA 50L","un",1,null,{"$f":"+E43*D43","v":0}]
[null,"Fornecimento e montagem de Chuveiro de emergencia, incluindo, tubagem de ligacao e todos os trabalhos necessarios para o bom funcionamento","un",1,null,0]
[null,"Subtotal",null,null,null,{"$f":"SUM(F39:F44)","v":0}]
[]
[5,"MORGUE"]
[5]
[5.0999999999999996,{"$nulls":4},{"$f":"+E49*D49","v":0}]
[]
[5.2,{"$nulls":4},{"$f":"+E51*D51","v":0}]
[]
[5.3,{"$nulls":4},0]
[]
[null,"Subtotal",{"$nulls":4},{"$f":"+F55/D53","v":{"$error":"#DIV/0!"}}]
[]
[5,"SANITARIOS"]
[5,"Edificio de sanitarios da enfermaria tenda executado em de modulo pre fabricado, com compartimentacao de acordo com o projecto e especificacoes tecnicas constantes na memorias descritivas dos Termos de referencia."]
[5.0999999999999996,"Execucao de Base de assentamento em laje de betao armado, elevado a 60cm do solo, com rampa de acesso e escadaria, de acordo com o projecto, incluindo,  movimentos de terra, fundacoes e todos os trabalhos complementares.","m2",120,120,{"$f":"+E59*D59","v":14400}]
[]
[5.2,"Fornecimento e montagem de modulo prefabricado  com cerca de 30 m2 de acordo com as dimencoes e especificacoes do projecto. Incluindo transporte, caixilharia,  instalacoes tecnicas e  todos os trabalhos complementares e  de acabamento para o seu bom funcionamento.","un",4,30000,{"$f":"+E61*D61","v":120000}]
[]
[5.3,"Execucao de cobertura em chapa IBS assente sobre uma estrutura asnas e madres de perfis metalicos.","m2",120,50,{"$f":"+E63*D63","v":6000}]
[]
[null,"Subtotal"]
[]
[null,"SUBTOTAL - MODULOS PREFABRICADOS",null,null,null,{"$f":"+F55+F45+F35+F25+F17+F65","v":0}]

{"sheet":"GUARITA","index":3,"n_rows":86,"n_cols":8,"rows_kept":86,"cut":false,"hidden":false,"merged":[[1,0,1,1],[1,2,1,5],[2,0,2,3],[2,4,2,5],[3,0,3,1],[3,2,3,3],[3,4,3,5],[9,1,9,5],[4,4,4,5],[5,0,5,1],[5,2,5,3],[5,4,5,5],[6,0,6,3],[6,4,6,5],[4,0,4,1]]}
[]
["MINISTERIO DA SAUDE ",null,"UNITED NATIONS DEVELOPMENT PROGRAMME"]
["TÍTULO:"]
["LABORATORIO DE SAUDE PUBLICA",null,null,null,"MAPA DE QUANTIDADES"]
["LOTE 1"]
["MANICA",null,null,null,"GUARITA"]
[]
[]
["ITEM","DESCRIÇÃO","UN","QUANT.","PREÇO UNITÁRIO","PREÇO TOTAL"]
[1,"GUARITA"]
["1.1","FUNDACOES"]
["1.1.1","Escavacao de caboucos de fundacao, incluindo rega e compactacao do leito da fundacao","m3",20,null,{"$f":"+E12*D12","v":0}]
["1.1.2","Aterro em terras provenientes da escavacao, incluindo rega e compactacao","m2",35,null,0]
["1.1.3","Fornecimento e aplicacao de Enrrocamento em pedra mediana em camada de 10cm nas bases da fundacao e do pavimento","m3",1.8,null,0]
["1.1.4","Execucao de Sapatas isoladas dos pilares em betao  B25 80x80x30cm, armadas em Ø12mm, incluindo cofragem e descofragem e todos os trabalhos necessarios a boa execucao","m3",{"$f":"(0.8*0.8*0.3)*6","v":1.1520000000000001},null,0]
["1.1.5","Execucao de Sapata corrida em betao B25com seccao 60x20cm incluindo todos os trabalhos necessarios a boa execucao","m3",{"$f":"0.6*0.2*16","v":1.92},null,0]
["1.1.6","Fornecimento e assentamento de Alvenaria de fundacao em blocos macissados de 20cm assentes em argamassa de cimento e areia ao traco de 1:5","m2",13.4,null,0]
["1.1.7","Execucao de Viga de pavimento em betao armado B25 com seccao 20x30cm armada com 4 Ø10mm e estribos Ø6mm @15cm incluindo cofragem e descofragem e todos os trabalhos necessarios a boa execucao","m3",{"$f":"16*0.3*0.2","v":0.96},null,0]
["1.1.8","Fornecimento e colocacao de Aterros de solos saibrosos da camara de emprestimo, incluindo trabalhos de rega e compactacao","m3",{"$f":"5.5*2.5*0.6","v":8.25},null,0]
["1.1.9","Pavimento em betao B25 de 12 cm de espessura ligeiramente armado em malhasol de @20cm incluindo cofragem e descofragem e todos os trabalhos necessarios a boa execucao","m3",5.4,null,0]
[null,"Subtotal",null,null,null,{"$f":"SUM(F12:F20)","v":0}]
[]
["1.2","SUPER ESTRUTURA"]
["1.2.1","Execucao de Pilares em betao armado B25 com seccao 20x30cm e uma altura media de 4.60m armados com 4 Ø12mm e estribos Ø6mm @15cmincluindo cofragem e descofragem e todos os trabalhos necessarios a boa execucao","m3",{"$f":"0.2*0.3*3*6","v":1.08},null,0]
["1.2.2","Execucao de Vigas de coroamento em betao armado B25 com seccao 20x30cm e armadas com 4 Ø12mm e estribos Ø6mm @15cmincluindo cofragem e descofragem e todos os trabalhos necessarios a boa execucao","m3",{"$f":"16*0.2*0.4","v":1.2800000000000002},null,0]
["1.2.3","Fornecimento e assentamento de Alvenaria de bloco vazado de 20, assentes com argamassa de cimento e areia ao traço 1:5r ","m2",{"$f":"18.5*3","v":55.5},null,0]
["1.2.4","Fornecimento e assentamento de Grelhas em betao ","m2",2,null,0]
["1.2.6","Execucao de rampa de acesso, de acordo com os desenhos do projecto","Vg",1,null,0]
[null,"Subtotal",null,null,null,{"$f":"SUM(F24:F28)","v":0}]
[]
[1.3,"COBERTURA"]
["1.3.1","Execucao de laje em betao armado B25 com  15 cm de espessura cmincluindo armadura, cofragem e descofragem e todos os trabalhos necessarios a boa execucao","m2",{"$f":"4.3*6.5*0.12","v":3.3539999999999996},null,0]
["1.3.2","Execução de betonilha de regularização com argamassa de cimento e areia ao traço 1:3, com caimento de 3% para tubos de queda incluindo aplicação de tinta impermeabilizante, de Imperflex Coberturas (ref.:17-600) ou equivalente, de acordo com instrucoes do fabricante.","m2",11.5,null,0]
["1.3.3","Fornecimento e colocação de rufos nos topos das paredes de alvenaria em chapa metálica quinada e com borda de 5 cm","ml",22,null,0]
["1.3.4","Fornecimento e colocacao de  tubo de queda e todos acessórios de ligação e fixação","ml",6,null,0]
[null,"Subtotal",null,null,null,{"$f":"SUM(F32:F35)","v":0}]
[]
[1.4,"CAIXILHARIA"]
["1.4.1","Fornecimento e assentamento de portas Portas em madeira macissa, incluindo todas as ferragens necessarias ao bom funcionamento"]
[null,"Batente simples 0.90x2.10m","un",1,null,0]
[null,"Batente simples 0.80x2.10m","un",1,null,0]
["1.4.2","Fornecimento e assentamento de Janelas em aluminio lacado, incluindo todas a s ferragens para o seu bom funcionamento",{"$nulls":5},"`"]
[null,"J1.5 (2,00 x 1,10m)","un",1,null,0]
[null,"J2.5 (1,00 x 1,10m)","un",3,null,0]
[null,"J3.5 (0,60 x 0,75m)","un",1,null,0]
[null,"Subtotal",null,null,null,{"$f":"SUM(F39:F45)","v":0}]
[]
[1.5,"REVESTIMENTOS E ACABAMENTOS"]
["1.5.1","Fornecimento e aplicação de betonilha simples queimada a colher ao traço 1:3,com almagre cinzento afagada e esquartelada.","m2",12.9,null,0]
["1.5.2","Fornecimento e assentamento Tijoleira porcelanicaa com 30x30cm de boa qualidade,  em pavimentos de areas humidas e de circulacao, incluindo rodape.","m2",12.9,null,0]
["1.5.3","Fornecimento e assentamento de reboco ao traço 1:4 em todas paredes externas e internas do edifício.","m2",95,null,0]
["1.5.4","Fornecimento e assentamento Azulejo cerâmico com 20 x 30cm de boa qualidade ,  em paredes de areas humidas ate uma altura de 2.10m","m2",11.5,null,0]
["1.5.5","Fornecimento e colocação de balcão de madeira com 2.4x0.6m acabado  em tinta esmalte e todos os trabalhos para o correcto funcionamento","un",1,null,{"$f":"+E53*D53","v":0}]
[null,"Subtotal",null,null,null,{"$f":"SUM(F49:F53)","v":0}]
[]
[1.6,"PINTURAS"]
["1.6.1","Pintura das paredes em duas demãos, com tinta plástica de boa qualidade da CIN, cor  a definir pelo dono da obra antecedida dum primário  e preparação da superfície a pintar ","m2",112,null,0]
[null,"Pintura dos tectoss em duas demãos, com tinta plástica de boa qualidade da CIN, cor  a definir pelo dono da obra antecedida dum primário  e preparação da superfície a pintar ","m2",11.5,null,0]
["1.6.2","Pintura de estruturas metálicas com tinta tipo CIN ou similar, incluindo a correcção e preparação de superficies, assim como todos os trabalhos e acessorios necessários à sua correcta aplicação","m2",158,null,0]
[null,"Subtotal",null,null,null,{"$f":"SUM(F49:F59)","v":0}]
[]
[1.7,"HIDRAULICA"]
["1.7.1","Fornecimento e montagem de tubagem  PP-R 20mm para distribuição de água aos pontos definidos no projecto, incluindo valvula de seccionamento, torneiras de esquadria, acessórios, fixações, bem como todos os trabalhos preliminares e complementares","vg",1,null,0]
["1.7.2","Fornecimento e montagem de tubagem plastica uPVC PN6 Ø 75 mm/Ø 110 mm/  enterrada  para ligacao dos esgotos dos edificios ao sistema de esgotos existente, incluindo execucao de caixas de inspeccao, acessórios de ligacao, bem como todos os trabalhos necessários.","Vg",1,null,{"$f":"+E64*D64","v":0}]
["1.7.3","Fornecimento e montagem de equipamentos sanitarios , incluindo torneiras acessorios e todos os trabalhos de ligacao para o bom funcionamento"]
[null,"Sanita com autoclismo","un",1,null,0]
[null,"Lavatorio com pedestal","un",1,null,0]
["1.7.4","Fornecimento e colocacao de kit de instalacaoes sanitaria composto por porta-rolos, saboneteira liquida, toalheiro","un",1,null,0]
[null,"Construção de caixa de inspecção para águas negras , incluíndo todos os trabalhos necessários (escavação, aterro, alvenarias, betão), ligações e tampa em betão armado conforme especificado nos desenhos.","un",6,null,0]
[null,"Construção de caixa de inspecção para águas brancas , incluíndo todos os trabalhos necessários (escavação, aterro, alvenarias, betão), ligações e tampa em betão armado conforme especificado nos desenhos.","un",6,null,0]
[null,"Subtotal",null,null,null,{"$f":"SUM(F63:F70)","v":0}]
[]
[1.8,"ELECTRICIDADE"]
["1.8.1","Fornecimento e montagem de Quadro electrico parcial, incluindo dijuntores e ligacao a terra de proteccao.","Un",1,null,0]
["1.8.2","Execucao de instalacao electrica, incluindo tubagem , cablagem, caixas de derivacao.","Vg",1,null,0]
["1.8.3","Fornecimento e montagem de aparelhagem  electica embebida do tipo LEGRAND, incluindo acessorios e todos os trabalhos complementares para bom funcionamento"]
[null,"interruptores simples","un",3,null,0]
[null,"Tomadas simples 2P +T, 16A","un",6,null,0]
["1.8.4","Fornecimento e montagem de luminarias  electicas , incluindo acessorios e todos os trabalhos complementares para bom funcionamento"]
[null,"luminarias florescentes saliente 1x18W estanques com difusor prismatico transparente","un",2,null,{"$f":"+E80*D80","v":0}]
[null,"luminarias florescentes saliente 2x18W estanques com difusor prismatico transparente","un",1,null,0]
[null,"Aplique exterior com difusor prismatico em policarbonato e lampada a vapor de 70W","Un",1,null,0]
["1.8.5","Fornecimento e Montagem de ventilador helicoidal de montagem na parede de 83m3/h, incluindo todos os acessórios de fixação e ligação,  grelha exterior adequada e comando de controlo através da iluminação:","un",1,null,0]
[null,"Subtotal",null,null,null,{"$f":"SUM(F74:F83)","v":0}]
[]
[null,"SUBTOTAL - GUARITA",null,null,null,{"$f":"F84+F71+F60+F54+F46+F36+F29+F21","v":0}]